fUST/lending_fUST_20251006
["ID","MTS","AMOUNT","RATE_DAILY","PERIOD"]
[389571502,1759722654100,-500.0,0.00016712,2]
[389571504,1759722654110,-420.0,0.00016712,2]
[389571506,1759722654120,-500.0,0.00016712,2]
[389571508,1759722654131,-500.0,0.00016712,2]
[389571510,1759722654140,-6483.19,0.00016712,2]
[389571512,1759722654150,-500.0,0.00016712,2]
[389571514,1759722654160,-3380.33,0.00016712,2]
[389571516,1759722654169,-500.0,0.00016712,2]
[389571518,1759722654178,-500.0,0.00016712,2]
[389571520,1759722654189,-500.0,0.00016712,2]
[389571521,1759722654199,-819.59,0.00016712,2]
[389571523,1759722654208,-500.0,0.00016712,2]
[389571525,1759722654217,-500.0,0.00016712,2]
[389571527,1759722654226,-491.61789862,0.00016712,2]
[389571529,1759722654235,-500.0,0.00016712,2]
[389571531,1759722654245,-711.34,0.00016712,2]
[389571533,1759722654254,-500.0,0.00016712,2]
[389571535,1759722654263,-9850.23,0.00016712,2]
[389571537,1759722654272,-934.25,0.00016712,2]
[389571539,1759722654281,-1151.85,0.00016712,2]
[389571541,1759722654290,-500.0,0.00016712,2]
[389571543,1759722654301,-1575.06,0.00016712,2]
[389571545,1759722654310,-3877.86,0.00016712,2]
[389571547,1759722654320,-528.11,0.00016712,2]
[389571549,1759722654330,-500.0,0.00016712,2]
[389571551,1759722654339,-500.0,0.00016712,2]
[389571553,1759722654348,-2271.78,0.00016712,2]
[389571555,1759722654357,-1139.15,0.00016712,2]
[389571557,1759722654368,-500.0,0.00016712,2]
[389571559,1759722654378,-500.0,0.00016712,2]
[389571561,1759722654388,-500.0,0.00016712,2]
[389571563,1759722654397,-548.21,0.00016712,2]
[389571564,1759722654406,-960.69,0.00016712,2]
[389571566,1759722654416,-595.23,0.00016712,2]
[389571568,1759722654425,-3247.6,0.00016712,2]
[389571570,1759722654434,-500.0,0.00016712,2]
[389571572,1759722654444,-500.0,0.00016712,2]
[389571574,1759722654453,-500.15551848,0.00016712,2]
[389571576,1759722654463,-500.0,0.00016712,2]
[389571578,1759722654472,-500.0,0.00016712,2]
[389571580,1759722654481,-4118.02,0.00016712,2]
[389571582,1759722654491,-500.0,0.00016712,2]
[389571584,1759722654500,-505.28924341,0.00016712,2]
[389571586,1759722654510,-8168.33,0.00016712,2]
[389571588,1759722654519,-500.0,0.00016712,2]
[389571590,1759722654528,-2556.97,0.00016712,2]
[389571592,1759722654537,-480.0,0.00016712,2]
[389571594,1759722654546,-500.0,0.00016712,2]
[389571596,1759722654555,-500.0,0.00016712,2]
[389571598,1759722654565,-500.0,0.00016712,2]
[389571600,1759722654574,-895.57,0.00016712,2]
[389571602,1759722654583,-930.33,0.00016712,2]
[389571604,1759722654591,-557.77,0.00016712,2]
[389571605,1759722654600,-500.0,0.00016712,2]
[389571606,1759722654610,-500.0,0.00016712,2]
[389571607,1759722654621,-168.0,0.00016725,2]
[389571608,1759722654631,-168.0,0.00016726,2]
[389571609,1759722654639,-4512.2406494,0.00016747,2]
[389571610,1759722654648,-300.0,0.00016766,2]
[389571611,1759722654657,-300.0,0.00016766,2]
[389571612,1759722654667,-300.0,0.00016766,2]
[389571613,1759722654675,-300.0,0.00016766,2]
[389571614,1759722654684,-300.0,0.00016766,2]
[389571616,1759722654694,-300.0,0.00016766,2]
[389571618,1759722654703,-300.0,0.00016766,2]
[389571620,1759722654712,-300.0,0.00016766,2]
[389571622,1759722654721,-300.0,0.00016766,2]
[389571624,1759722654730,-300.0,0.00016766,2]
[389571626,1759722654739,-300.0,0.00016766,2]
[389571628,1759722654748,-300.0,0.00016766,2]
[389571630,1759722654757,-300.0,0.00016766,2]
[389571632,1759722654766,-300.0,0.00016766,2]
[389571634,1759722654775,-300.0,0.00016766,2]
[389571636,1759722654784,-600.0,0.00016766,2]
[389571638,1759722654793,-238.38,0.00016766,2]
[389571640,1759722654802,-2459.51810977,0.00016777,2]
[389571642,1759722654810,-313.0,0.00016806,2]
[389571644,1759722654820,-8517.5370671,0.00016879,2]
[389571646,1759722654829,-177.08113232,0.00016886,2]
[389571648,1759722654838,-151.0,0.000169,2]
[389571650,1759722654848,-451.0,0.00016916,2]
[389571652,1759722654857,-168.0,0.00016917,2]
[389571654,1759722654867,-227.28,0.00016934,2]
[389571655,1759722654877,-182.82,0.00016946,2]
[389571657,1759722654886,-634.691,0.00016946,2]
[389571659,1759722654895,-169.77144589,0.00016946,2]
[389571661,1759722654904,-394.0,0.00016959,2]
[389571663,1759722654914,-500.0,0.00016973,2]
[389571665,1759722654923,-500.30974677,0.00016973,2]
[389571667,1759722654932,-19292.2273969,0.00016976,2]
[389571669,1759722654942,-311.0,0.0001698,2]
[389571671,1759722654951,-161.90317722,0.00016985,2]
[389571673,1759722654960,-500.0,0.00016986,2]
[389571675,1759722654970,-500.0,0.00016986,2]
[389571677,1759722654980,-151.90914309,0.00016986,2]
[389571679,1759722654994,-188.66048517,0.00016986,2]
[389571682,1759722655003,-151.0,0.00016986,2]
[389571683,1759722655012,-500.0,0.00016986,2]
[389571686,1759722655022,-151.0,0.00016986,2]
[389571688,1759722655032,-1237.0,0.00016986,2]
[389571690,1759722655042,-151.0,0.00016986,2]
[389571691,1759722655051,-541.36153996,0.00016986,2]
[389571694,1759722655066,-151.0,0.00016986,2]
[389571695,1759722655076,-500.0,0.00016986,2]
[389571698,1759722655086,-151.0,0.00016986,2]
[389571700,1759722655095,-151.0,0.00016986,2]
[389571702,1759722655105,-198.98460991,0.00016986,2]
[389571703,1759722655114,-500.0,0.00016986,2]
[389571705,1759722655124,-262.74408215,0.00016986,2]
[389571707,1759722655138,-538.09,0.00016986,2]
[389571709,1759722655147,-483.99703503,0.00016986,2]
[389571711,1759722655156,-500.0,0.00016986,2]
[389571713,1759722655165,-500.0,0.00016986,2]
[389571715,1759722655174,-500.0,0.00016986,2]
[389571718,1759722655183,-500.0,0.00016986,2]
[389571720,1759722655193,-500.0,0.00016986,2]
[389571722,1759722655203,-500.0,0.00016986,2]
[389571723,1759722655213,-500.0,0.00016986,2]
[389571725,1759722655222,-500.0,0.00016986,2]
[389571732,1759722655271,-500.0,0.00016986,2]
[389571734,1759722655280,-504.98961572,0.00016986,2]
[389571736,1759722655289,-500.0,0.00016986,2]
[389571738,1759722655298,-500.0,0.00016986,2]
[389571740,1759722655307,-500.0,0.00016986,2]
[389571742,1759722655317,-500.0,0.00016986,2]
[389571744,1759722655327,-527.28,0.00016986,2]
[389571746,1759722655336,-500.0,0.00016986,2]
[389571748,1759722655345,-500.0,0.00016986,2]
[389571750,1759722655354,-932.03,0.00016986,2]
[389571752,1759722655363,-500.0,0.00016986,2]
[389571754,1759722655373,-292.57555994,0.00016986,2]
[389571784,1759722655644,4894.90193353,0.0001533,2]
[389572660,1759722954334,1042.5830187,0.00031838,120]
[389572661,1759723041256,191.688605,0.00015438,2]
[389572672,1759723567124,919.0,0.00028767,120]
[389572673,1759723570165,11254.19721875,0.0003186,120]
[389572674,1759723605077,1333.75812,0.0003186,120]
[389572712,1759723832613,-160.0,0.00016094,2]
[389572714,1759723832622,-634.691,0.00016109,2]
[389572715,1759723832631,-300.0,0.00016109,2]
[389572716,1759723832640,-169.77144589,0.00016109,2]
[389572717,1759723832650,-300.0,0.00016327,2]
[389572718,1759723832659,-753.03755411,0.00016327,2]
[389572739,1759723838520,-446.96244589,0.00016327,2]
[389572741,1759723838529,-403.71093316,0.00016327,2]
[389572743,1759723838539,-184.3105283,0.00016327,2]
[389572744,1759723838548,-44835.29576643,0.00016328,2]
[389572745,1759723838558,-6485.40779889,0.00016338,2]
[389572747,1759723838567,-339.0,0.00016363,2]
[389572748,1759723838581,-2030.296672,0.00016418,2]
[389572749,1759723838590,-364.67,0.00016428,3]
[389572750,1759723838599,-182.34,0.00016428,3]
[389572751,1759723838608,-547.03,0.00016428,3]
[389572752,1759723838618,-151.0,0.00016428,2]
[389572753,1759723838626,-18603.8837,0.00016428,2]
[389572754,1759723838636,-151.0,0.00016428,2]
[389572755,1759723838645,-151.0,0.00016428,2]
[389572756,1759723838654,-246.59409267,0.00016428,2]
[389572757,1759723838663,-2000.0,0.00016428,2]
[389572758,1759723838672,-2000.0,0.00016428,2]
[389572759,1759723838682,-2000.0,0.00016428,2]
[389572760,1759723838691,-2000.0,0.00016428,2]
[389572761,1759723838701,-2000.0,0.00016428,2]
[389572762,1759723838710,-2000.0,0.00016428,2]
[389572763,1759723838720,-2000.0,0.00016428,2]
[389572764,1759723838732,-2000.0,0.00016428,2]
[389572765,1759723838741,-2000.0,0.00016428,2]
[389572766,1759723838750,-2000.0,0.00016428,2]
[389572767,1759723838759,-2000.0,0.00016428,2]
[389572768,1759723838768,-2000.0,0.00016428,2]
[389572769,1759723838778,-2000.0,0.00016428,2]
[389572770,1759723838787,-2000.0,0.00016428,2]
[389572771,1759723838796,-2000.0,0.00016428,2]
[389572772,1759723838805,-2000.0,0.00016428,2]
[389572773,1759723838814,-2000.0,0.00016428,2]
[389572774,1759723838823,-2000.0,0.00016428,2]
[389572775,1759723838832,-500.0,0.00016438,2]
[389572776,1759723838842,-500.0,0.00016438,2]
[389572777,1759723838852,-503.75760471,0.00016438,2]
[389572778,1759723838863,-505.08737469,0.00016438,2]
[389572779,1759723838872,-500.0,0.00016438,2]
[389572780,1759723838882,-504.46750302,0.00016438,2]
[389572781,1759723838891,-500.0,0.00016438,2]
[389572782,1759723838901,-151.0,0.00016438,2]
[389572783,1759723838911,-151.0,0.00016438,2]
[389572784,1759723838920,-500.0,0.00016438,2]
[389572785,1759723838929,-151.0,0.00016438,2]
[389572786,1759723838939,-151.0,0.00016438,2]
[389572787,1759723838948,-151.0,0.00016438,2]
[389572788,1759723838957,-172.732425,0.00016438,2]
[389572789,1759723838967,-500.0,0.00016438,2]
[389572790,1759723838976,-500.0,0.00016438,2]
[389572791,1759723838986,-502.92836906,0.00016438,2]
[389572792,1759723838996,-151.0,0.00016438,2]
[389572793,1759723839005,-151.0,0.00016438,2]
[389572794,1759723839014,-151.0,0.00016438,2]
[389572795,1759723839023,-288.340513,0.00016438,2]
[389572796,1759723839033,-502.63198571,0.00016438,2]
[389572797,1759723839042,-503.25010321,0.00016438,2]
[389572798,1759723839051,-500.0,0.00016438,2]
[389572799,1759723839060,-500.0,0.00016438,2]
[389572800,1759723839070,-501.74884647,0.00016438,2]
[389572801,1759723839080,-151.366975,0.00016438,2]
[389572802,1759723839090,-500.0,0.00016438,2]
[389572803,1759723839099,-501.12130617,0.00016438,2]
[389572804,1759723839109,-482.32994548,0.00016438,2]
[389572805,1759723839119,-500.0,0.00016438,2]
[389572806,1759723839131,-500.0,0.00016438,2]
[389572807,1759723839140,-452.33318069,0.00016438,2]
[389572808,1759723839150,-151.180424,0.00016438,2]
[389572809,1759723839161,-500.0,0.00016438,2]
[389572810,1759723839171,-500.0,0.00016438,2]
[389572811,1759723839185,-151.0,0.00016438,2]
[389572812,1759723839195,-151.0,0.00016438,2]
[389572813,1759723839205,-151.0,0.00016438,2]
[389572814,1759723839215,-151.0,0.00016438,2]
[389572815,1759723839225,-151.0,0.00016438,2]
[389572816,1759723839234,-151.0,0.00016438,2]
[389572817,1759723839244,-151.313719,0.00016438,2]
[389572818,1759723839254,-500.0,0.00016438,2]
[389572819,1759723839264,-635.28350006,0.00016438,2]
[389572820,1759723839276,-504.50136587,0.00016438,2]
[389572821,1759723839285,-500.0,0.00016438,2]
[389572822,1759723839294,-488.83041307,0.00016438,2]
[389572823,1759723839303,-501.99375418,0.00016438,2]
[389572824,1759723839313,-500.0,0.00016438,2]
[389572825,1759723839322,-500.0,0.00016438,2]
[389572826,1759723839331,-151.0,0.00016438,2]
[389572827,1759723839341,-505.40505027,0.00016438,2]
[389572828,1759723839355,-502.43314686,0.00016438,2]
[389572829,1759723839364,-500.0,0.00016438,2]
[389572830,1759723839374,-500.0,0.00016438,2]
[389572831,1759723839386,-500.0,0.00016438,2]
[389572832,1759723839398,-151.0,0.00016438,2]
[389572833,1759723839407,-151.0,0.00016438,2]
[389572834,1759723839417,-151.0,0.00016438,2]
[389572835,1759723839426,-151.0,0.00016438,2]
[389572836,1759723839435,-151.0,0.00016438,2]
[389572837,1759723839444,-151.0,0.00016438,2]
[389572838,1759723839454,-151.0,0.00016438,2]
[389572839,1759723839464,-196.951336,0.00016438,2]
[389572840,1759723839473,-500.0,0.00016438,2]
[389572841,1759723839482,-151.251531,0.00016438,2]
[389572842,1759723839491,-503.28215681,0.00016438,2]
[389572843,1759723839501,-505.22037048,0.00016438,2]
[389572844,1759723839510,-151.0,0.00016438,2]
[389572845,1759723839519,-151.0,0.00016438,2]
[389572846,1759723839530,-151.0,0.00016438,2]
[389572847,1759723839539,-151.0,0.00016438,2]
[389572848,1759723839548,-500.0,0.00016438,2]
[389572849,1759723839557,-151.0,0.00016438,2]
[389572850,1759723839567,-151.0,0.00016438,2]
[389572851,1759723839580,-151.0,0.00016438,2]
[389572852,1759723839590,-151.0,0.00016438,2]
[389572853,1759723839599,-151.0,0.00016438,2]
[389572854,1759723839609,-500.0,0.00016438,2]
[389572855,1759723839619,-462.85023782,0.00016438,2]
[389572856,1759723839629,-502.52653989,0.00016438,2]
[389572857,1759723839639,-504.30940729,0.00016438,2]
[389572858,1759723839649,-500.0,0.00016438,2]
[389572859,1759723839658,-500.0,0.00016438,2]
[389572860,1759723839668,-500.0,0.00016438,2]
[389572861,1759723839676,-500.0,0.00016438,2]
[389572862,1759723839686,-500.0,0.00016438,2]
[389572863,1759723839695,-501.91832114,0.00016438,2]
[389572864,1759723839703,-500.0,0.00016438,2]
[389572865,1759723839712,-303.51718202,0.00016438,2]
[389572866,1759723839721,-662.82,0.00016438,2]
[389572867,1759723839730,-672.15,0.00016438,2]
[389572868,1759723839739,-505.08340539,0.00016438,2]
[389572869,1759723839748,-151.0,0.00016438,2]
[389572870,1759723839757,-151.0,0.00016438,2]
[389572871,1759723839766,-151.0,0.00016438,2]
[389572872,1759723839776,-151.51877,0.00016438,2]
[389572873,1759723839785,-151.0,0.00016438,2]
[389572874,1759723839794,-151.0,0.00016438,2]
[389572875,1759723839804,-151.0,0.00016438,2]
[389572876,1759723839814,-151.870907,0.00016438,2]
[389572877,1759723839823,-500.0,0.00016438,2]
[389572878,1759723839833,-500.0,0.00016438,2]
[389572879,1759723839843,-502.5969282,0.00016438,2]
[389572880,1759723839851,-151.0,0.00016438,2]
[389572881,1759723839860,-151.0,0.00016438,2]
[389572882,1759723839869,-151.0,0.00016438,2]
[389572883,1759723839879,-500.0,0.00016438,2]
[389572884,1759723839888,-151.0,0.00016438,2]
[389572885,1759723839897,-151.0,0.00016438,2]
[389572886,1759723839907,-151.0,0.00016438,2]
[389572887,1759723839916,-500.0,0.00016438,2]
[389572888,1759723839925,-151.0,0.00016438,2]
[389572889,1759723839935,-151.0,0.00016438,2]
[389572890,1759723839945,-151.0,0.00016438,2]
[389572891,1759723839953,-151.0,0.00016438,2]
[389572892,1759723839963,-151.0,0.00016438,2]
[389572893,1759723839971,-228.031222,0.00016438,2]
[389572894,1759723839981,-151.0,0.00016438,2]
[389572896,1759723839990,-151.0,0.00016438,2]
[389572897,1759723839999,-151.0,0.00016438,2]
[389572898,1759723840008,-500.0,0.00016438,2]
[389572899,1759723840017,-183.944655,0.00016438,2]
[389572900,1759723840026,-500.0,0.00016438,2]
[389572901,1759723840035,-481.83305076,0.00016438,2]
[389572903,1759723840044,-500.0,0.00016438,2]
[389572904,1759723840053,-165.345087,0.00016438,2]
[389572905,1759723840062,-500.0,0.00016438,2]
[389572906,1759723840071,-500.0,0.00016438,2]
[389572907,1759723840080,-500.0,0.00016438,2]
[389572908,1759723840090,-255.62695863,0.00016438,2]
[389572909,1759723840099,-500.0,0.00016438,2]
[389572910,1759723840108,-500.0,0.00016438,2]
[389572911,1759723840117,-500.0,0.00016438,2]
[389572912,1759723840126,-165.345087,0.00016438,2]
[389572913,1759723840136,-165.345087,0.00016438,2]
[389572914,1759723840145,-165.345087,0.00016438,2]
[389572916,1759723840154,-165.345087,0.00016438,2]
[389572917,1759723840162,-165.345087,0.00016438,2]
[389572918,1759723840171,-165.345087,0.00016438,2]
[389572919,1759723840180,-165.345087,0.00016438,2]
[389572920,1759723840190,-500.0,0.00016438,2]
[389572922,1759723840199,-165.345087,0.00016438,2]
[389572923,1759723840208,-500.0,0.00016438,2]
[389572924,1759723840217,-165.345087,0.00016438,2]
[389572925,1759723840226,-165.345087,0.00016438,2]
[389572926,1759723840236,-165.345087,0.00016438,2]
[389572927,1759723840246,-165.345087,0.00016438,2]
[389572928,1759723840257,-165.345087,0.00016438,2]
[389572929,1759723840267,-165.345087,0.00016438,2]
[389572930,1759723840276,-165.345087,0.00016438,2]
[389572931,1759723840285,-165.345087,0.00016438,2]
[389572932,1759723840294,-165.345087,0.00016438,2]
[389572933,1759723840303,-165.345087,0.00016438,2]
[389572934,1759723840315,-165.345094,0.00016438,2]
[389572935,1759723840324,-500.0,0.00016438,2]
[389572936,1759723840334,-320.67761957,0.00016438,2]
[389572937,1759723840344,-500.0,0.00016438,2]
[389572938,1759723840353,-1552.97,0.00016438,2]
[389572939,1759723840363,-500.0,0.00016438,2]
[389572940,1759723840372,-500.0,0.00016438,2]
[389572941,1759723840382,-198.0,0.00016438,2]
[389572942,1759723840391,-500.0,0.00016438,2]
[389572943,1759723840400,-457.532461,0.00016438,2]
[389572944,1759723840409,-500.0,0.00016438,2]
[389572945,1759723840419,-500.0,0.00016438,2]
[389572946,1759723840428,-500.0,0.00016438,2]
[389572947,1759723840438,-312.38923466,0.00016438,2]
[389572948,1759723840447,-503.04731833,0.00016438,2]
[389572949,1759723840456,-500.0,0.00016438,2]
[389572950,1759723840465,-500.0,0.00016438,2]
[389572951,1759723840474,-500.0,0.00016438,2]
[389572952,1759723840484,-500.0,0.00016438,2]
[389572953,1759723840493,-500.0,0.00016438,2]
[389572954,1759723840503,-500.0,0.00016438,2]
[389572955,1759723840512,-151.282888,0.00016438,2]
[389572956,1759723840521,-500.0,0.00016438,2]
[389572957,1759723840530,-500.0,0.00016438,2]
[389572958,1759723840539,-208.74,0.00016438,2]
[389572959,1759723840549,-500.0,0.00016438,2]
[389572960,1759723840557,-500.0,0.00016438,2]
[389572961,1759723840567,-500.0,0.00016438,2]
[389572962,1759723840578,-500.0,0.00016438,2]
[389572963,1759723840587,-500.0,0.00016438,2]
[389572964,1759723840596,-500.0,0.00016438,2]
[389572965,1759723840606,-502.39929524,0.00016438,2]
[389572966,1759723840615,-500.0,0.00016438,2]
[389572967,1759723840624,-500.0,0.00016438,2]
[389572968,1759723840634,-500.0,0.00016438,2]
[389572969,1759723840643,-500.0,0.00016438,2]
[389572970,1759723840653,-151.0,0.00016438,2]
[389572971,1759723840662,-151.0,0.00016438,2]
[389572972,1759723840671,-151.0,0.00016438,2]
[389572973,1759723840680,-151.0,0.00016438,2]
[389572974,1759723840689,-151.0,0.00016438,2]
[389572975,1759723840698,-151.0,0.00016438,2]
[389572976,1759723840707,-151.0,0.00016438,2]
[389572977,1759723840716,-151.0,0.00016438,2]
[389572978,1759723840726,-151.868962,0.00016438,2]
[389572979,1759723840735,-151.0,0.00016438,2]
[389572980,1759723840743,-152.130737,0.00016438,2]
[389572981,1759723840753,-500.0,0.00016438,2]
[389572982,1759723840762,-500.0,0.00016438,2]
[389572983,1759723840771,-500.0,0.00016438,2]
[389572984,1759723840781,-500.0,0.00016438,2]
[389572985,1759723840790,-500.0,0.00016438,2]
[389572986,1759723840799,-500.0,0.00016438,2]
[389572987,1759723840808,-1446.12,0.00016438,2]
[389572988,1759723840818,-500.0,0.00016438,2]
[389572989,1759723840826,-151.0,0.00016438,2]
[389572990,1759723840836,-151.0,0.00016438,2]
[389572991,1759723840846,-151.0,0.00016438,2]
[389572992,1759723840855,-151.0,0.00016438,2]
[389572993,1759723840864,-503.65366655,0.00016438,2]
[389572994,1759723840873,-151.0,0.00016438,2]
[389572995,1759723840884,-151.0,0.00016438,2]
[389572996,1759723840892,-503.5086806,0.00016438,2]
[389572997,1759723840901,-287.883654,0.00016438,2]
[389572998,1759723840911,-500.0,0.00016438,2]
[389572999,1759723840919,-151.0,0.00016438,2]
[389573000,1759723840929,-151.0,0.00016438,2]
[389573001,1759723840938,-162.237056,0.00016438,2]
[389573002,1759723840947,-500.0,0.00016438,2]
[389573003,1759723840956,-500.0,0.00016438,2]
[389573004,1759723840965,-500.0,0.00016438,2]
[389573005,1759723840974,-964.86,0.00016438,2]
[389573006,1759723840983,-504.12832487,0.00016438,2]
[389573007,1759723840991,-500.0,0.00016438,2]
[389573008,1759723841000,-500.0,0.00016438,2]
[389573009,1759723841009,-500.0,0.00016438,2]
[389573010,1759723841019,-500.0,0.00016438,2]
[389573011,1759723841028,-500.0,0.00016438,2]
[389573012,1759723841038,-151.0,0.00016438,2]
[389573013,1759723841047,-151.0,0.00016438,2]
[389573014,1759723841056,-151.0,0.00016438,2]
[389573015,1759723841065,-151.0,0.00016438,2]
[389573016,1759723841074,-500.0,0.00016438,2]
[389573017,1759723841083,-500.0,0.00016438,2]
[389573018,1759723841092,-151.0,0.00016438,2]
[389573019,1759723841101,-151.0,0.00016438,2]
[389573020,1759723841110,-151.0,0.00016438,2]
[389573021,1759723841120,-151.0,0.00016438,2]
[389573022,1759723841130,-151.0,0.00016438,2]
[389573023,1759723841139,-151.0,0.00016438,2]
[389573024,1759723841148,-500.0,0.00016438,2]
[389573025,1759723841158,-151.0,0.00016438,2]
[389573026,1759723841167,-151.0,0.00016438,2]
[389573027,1759723841176,-151.0,0.00016438,2]
[389573028,1759723841185,-151.0,0.00016438,2]
[389573029,1759723841194,-151.0,0.00016438,2]
[389573030,1759723841203,-151.0,0.00016438,2]
[389573031,1759723841212,-151.0,0.00016438,2]
[389573032,1759723841221,-151.38536956,0.00016438,2]
[389573033,1759723841230,-500.0,0.00016438,2]
[389573034,1759723841239,-258.68665,0.00016438,2]
[389573035,1759723841248,-151.0,0.00016438,2]
[389573036,1759723841257,-151.0,0.00016438,2]
[389573037,1759723841266,-151.0,0.00016438,2]
[389573038,1759723841275,-151.0,0.00016438,2]
[389573039,1759723841285,-151.0,0.00016438,2]
[389573040,1759723841294,-151.0,0.00016438,2]
[389573041,1759723841303,-151.0,0.00016438,2]
[389573042,1759723841313,-151.0,0.00016438,2]
[389573043,1759723841322,-151.0,0.00016438,2]
[389573044,1759723841331,-151.0,0.00016438,2]
[389573045,1759723841340,-151.0,0.00016438,2]
[389573046,1759723841349,-151.0,0.00016438,2]
[389573047,1759723841358,-500.0,0.00016438,2]
[389573048,1759723841368,-151.0,0.00016438,2]
[389573049,1759723841377,-151.0,0.00016438,2]
[389573050,1759723841387,-151.0,0.00016438,2]
[389573051,1759723841396,-151.0,0.00016438,2]
[389573052,1759723841406,-151.0,0.00016438,2]
[389573053,1759723841415,-151.57264,0.00016438,2]
[389573054,1759723841426,-151.0,0.00016438,2]
[389573055,1759723841436,-500.0,0.00016438,2]
[389573056,1759723841444,-151.0,0.00016438,2]
[389573057,1759723841453,-500.0,0.00016438,2]
[389573058,1759723841464,-174.949653,0.00016438,2]
[389573059,1759723841474,-822.39,0.00016438,2]
[389573060,1759723841653,-500.0,0.00016438,2]
[389573061,1759723841663,-500.0,0.00016438,2]
[389573062,1759723841672,-500.0,0.00016438,2]
[389573063,1759723841681,-198.0,0.00016438,2]
[389573064,1759723841690,-151.0,0.00016438,2]
[389573065,1759723841700,-151.0,0.00016438,2]
[389573066,1759723841709,-151.0,0.00016438,2]
[389573067,1759723841718,-500.0,0.00016438,2]
[389573068,1759723841728,-151.0,0.00016438,2]
[389573069,1759723841737,-151.381426,0.00016438,2]
[389573070,1759723841746,-151.0,0.00016438,2]
[389573071,1759723841755,-151.0,0.00016438,2]
[389573072,1759723841765,-151.0,0.00016438,2]
[389573073,1759723841774,-151.0,0.00016438,2]
[389573074,1759723841783,-151.0,0.00016438,2]
[389573075,1759723841792,-151.0,0.00016438,2]
[389573076,1759723841801,-151.0,0.00016438,2]
[389573077,1759723841810,-151.0,0.00016438,2]
[389573078,1759723841819,-151.0,0.00016438,2]
[389573079,1759723841828,-500.0,0.00016438,2]
[389573080,1759723841837,-151.0,0.00016438,2]
[389573081,1759723841846,-500.0,0.00016438,2]
[389573082,1759723841855,-151.0,0.00016438,2]
[389573083,1759723841864,-500.0,0.00016438,2]
[389573084,1759723841873,-151.0,0.00016438,2]
[389573085,1759723841883,-151.0,0.00016438,2]
[389573086,1759723841891,-500.0,0.00016438,2]
[389573087,1759723841900,-151.0,0.00016438,2]
[389573088,1759723841909,-151.0,0.00016438,2]
[389573089,1759723841919,-508.97965674,0.00016438,2]
[389573090,1759723841927,-151.0,0.00016438,2]
[389573091,1759723841936,-151.0,0.00016438,2]
[389573092,1759723841946,-151.0,0.00016438,2]
[389573093,1759723841955,-213.016442,0.00016438,2]
[389573094,1759723841964,-151.0,0.00016438,2]
[389573095,1759723841973,-151.0,0.00016438,2]
[389573096,1759723841982,-151.0,0.00016438,2]
[389573097,1759723841991,-151.0,0.00016438,2]
[389573098,1759723842000,-151.0,0.00016438,2]
[389573099,1759723842009,-151.0,0.00016438,2]
[389573100,1759723842018,-221.369747,0.00016438,2]
[389573101,1759723842028,-151.0,0.00016438,2]
[389573102,1759723842037,-151.0,0.00016438,2]